fUST/lending_fUST_20250722
["ID","MTS","AMOUNT","RATE_DAILY","PERIOD"]
[373949000,1753161040409,-518.74532372,0.00016835,2]
[373949001,1753161040419,-460.0,0.00016835,2]
[373949002,1753161040429,-461.76873521,0.00016835,2]
[373949003,1753161040439,-460.0,0.00016835,2]
[373949004,1753161040450,-460.68863674,0.00016835,2]
[373949005,1753161040459,-460.0,0.00016835,2]
[373949006,1753161040469,-460.0,0.00016835,2]
[373949007,1753161040478,-460.0,0.00016835,2]
[373949008,1753161040488,-460.0,0.00016835,2]
[373949009,1753161040498,-460.0,0.00016835,2]
[373949010,1753161040508,-460.0,0.00016835,2]
[373949011,1753161040517,-500.0,0.00016835,2]
[373949012,1753161040527,-28772.86831616,0.00016836,2]
[373949013,1753161040538,-500.0,0.00016873,2]
[373949015,1753161040547,-500.0,0.00016873,2]
[373949017,1753161040557,-500.0,0.00016873,2]
[373949019,1753161040567,-485.21267732,0.000169,2]
[373949021,1753161040576,-744.17,0.00016923,3]
[373949023,1753161040586,-372.08,0.00016923,3]
[373949024,1753161040596,-186.04,0.00016923,3]
[373949027,1753161040606,-558.17,0.00016923,3]
[373949029,1753161040615,-500.0,0.00016924,2]
[373949031,1753161040624,-405.91,0.00016928,3]
[373949033,1753161040633,-500.0,0.00016932,2]
[373949035,1753161040643,-500.0,0.00016932,2]
[373949037,1753161040655,-500.0,0.00016932,2]
[373949039,1753161040666,-500.0,0.00016932,2]
[373949041,1753161040676,-500.0,0.00016932,2]
[373949043,1753161040685,-500.0,0.00016932,2]
[373949045,1753161040695,-474.75962598,0.00016932,2]
[373949047,1753161040706,-397.59116005,0.00016932,2]
[373949049,1753161040716,-460.0,0.00016933,2]
[373949051,1753161040725,-461.95609254,0.00016933,2]
[373949053,1753161040735,-460.0,0.00016933,2]
[373949055,1753161040746,-464.21847276,0.00016933,2]
[373949057,1753161040756,-460.0,0.00016933,2]
[373949059,1753161040765,-460.0,0.00016933,2]
[373949061,1753161040775,-460.0,0.00016933,2]
[373949063,1753161040784,-460.0,0.00016933,2]
[373949065,1753161040794,-460.0,0.00016933,2]
[373949067,1753161040803,-460.0,0.00016933,2]
[373949069,1753161040813,-460.0,0.00016933,2]
[373949071,1753161040822,-576.04021389,0.00016933,2]
[373949073,1753161040832,-460.0,0.00016933,2]
[373949075,1753161040842,-460.0,0.00016933,2]
[373949077,1753161040852,-460.0,0.00016933,2]
[373949079,1753161040861,-460.0,0.00016933,2]
[373949081,1753161040870,-304.68469093,0.00016933,2]
[373949084,1753161040880,-460.0,0.00016933,2]
[373949086,1753161040890,-500.0,0.00016933,2]
[373949088,1753161040900,-500.0,0.00016933,2]
[373949089,1753161040910,-500.0,0.00016933,2]
[373949091,1753161040919,-460.0,0.00016933,2]
[373949093,1753161040929,-460.0,0.00016933,2]
[373949095,1753161040938,-589.76,0.00016933,2]
[373949097,1753161040947,-460.0,0.00016933,2]
[373949099,1753161040957,-460.0,0.00016933,2]
[373949101,1753161040967,-304.25057573,0.00016933,2]
[373949103,1753161040977,-460.0,0.00016933,2]
[373949105,1753161040986,-460.0,0.00016933,2]
[373949107,1753161040996,-460.0,0.00016933,2]
[373949109,1753161041006,-460.0,0.00016933,2]
[373949111,1753161041015,-460.0,0.00016933,2]
[373949113,1753161041025,-460.0,0.00016933,2]
[373949115,1753161041034,-460.0,0.00016933,2]
[373949117,1753161041044,-460.0,0.00016933,2]
[373949119,1753161041054,-1427.52,0.00016934,2]
[373949121,1753161041064,-460.0,0.00016934,2]
[373949123,1753161041075,-460.0,0.00016934,2]
[373949125,1753161041084,-882.06,0.00016934,2]
[373949127,1753161041094,-460.0,0.00016934,2]
[373949129,1753161041104,-460.0,0.00016934,2]
[373949131,1753161041113,-460.0,0.00016934,2]
[373949133,1753161041123,-1311.2,0.00016934,2]
[373949136,1753161041132,-460.0,0.00016934,2]
[373949138,1753161041142,-460.0,0.00016934,2]
[373949140,1753161041152,-460.0,0.00016934,2]
[373949142,1753161041168,-460.0,0.00016934,2]
[373949144,1753161041178,-460.0,0.00016934,2]
[373949146,1753161041187,-460.0,0.00016934,2]
[373949148,1753161041197,-460.0,0.00016934,2]
[373949150,1753161041206,-460.0,0.00016934,2]
[373949152,1753161041216,-460.0,0.00016934,2]
[373949155,1753161041226,-460.0,0.00016934,2]
[373949157,1753161041235,-460.0,0.00016934,2]
[373949159,1753161041244,-460.0,0.00016934,2]
[373949161,1753161041253,-292.89467807,0.00016934,2]
[373949163,1753161041262,-460.0,0.00016934,2]
[373949165,1753161041272,-272.81695185,0.00016934,2]
[373949167,1753161041281,-460.0,0.00016934,2]
[373949169,1753161041290,-461.21465514,0.00016934,2]
[373949171,1753161041303,-460.0,0.00016934,2]
[373949173,1753161041312,-460.0,0.00016934,2]
[373949175,1753161041322,-460.0,0.00016934,2]
[373949177,1753161041331,-460.0,0.00016934,2]
[373949179,1753161041340,-460.0,0.00016934,2]
[373949181,1753161041349,-502.91840819,0.00016934,2]
[373949183,1753161041359,-462.25761897,0.00016934,2]
[373949185,1753161041368,-460.0,0.00016934,2]
[373949187,1753161041377,-460.0,0.00016934,2]
[373949189,1753161041387,-460.0,0.00016934,2]
[373949191,1753161041397,-460.0,0.00016934,2]
[373949194,1753161041411,-169.54985687,0.00016934,2]
[373949196,1753161041421,-460.0,0.00016934,2]
[373949198,1753161041432,-460.0,0.00016934,2]
[373949200,1753161041441,-460.0,0.00016936,2]
[373949202,1753161041451,-460.98195777,0.00016936,2]
[373949204,1753161041460,-460.0,0.00016936,2]
[373949206,1753161041471,-460.0,0.00016936,2]
[373949208,1753161041480,-460.0,0.00016936,2]
[373949210,1753161041490,-461.01346176,0.00016936,2]
[373949212,1753161041499,-460.0,0.00016936,2]
[373949214,1753161041509,-2082.03,0.00016936,2]
[373949216,1753161041519,-546.51,0.00016936,2]
[373949218,1753161041528,-460.0,0.00016936,2]
[373949220,1753161041538,-1130.92,0.00016936,2]
[373949222,1753161041548,-500.0,0.00016937,2]
[373949224,1753161041557,-500.0,0.00016937,2]
[373949226,1753161041567,-500.0,0.00016937,2]
[373949228,1753161041576,-500.0,0.00016937,2]
[373949230,1753161041585,-461.1280805,0.00016937,2]
[373949232,1753161041595,-460.0,0.00016937,2]
[373949234,1753161041604,-435.26288545,0.00016937,2]
[373949236,1753161041614,-460.0,0.00016937,2]
[373949237,1753161041623,-460.0,0.00016937,2]
[373949238,1753161041633,-460.0,0.00016937,2]
[373949239,1753161041643,-460.0,0.00016937,2]
[373949240,1753161041654,-1285.04,0.00016937,2]
[373949241,1753161041665,-460.0,0.00016937,2]
[373949242,1753161041674,-472.92,0.00016937,2]
[373949243,1753161041684,-461.71202458,0.00016937,2]
[373949244,1753161041694,-463.38160458,0.00016937,2]
[373949246,1753161041705,-1025.15,0.00016937,2]
[373949248,1753161041714,-500.0,0.00016938,2]
[373949249,1753161041723,-919.67,0.00016938,2]
[373949250,1753161041734,-460.0,0.00016938,2]
[373949251,1753161041745,-563.15914466,0.00016938,2]
[373949253,1753161041755,-460.0,0.00016938,2]
[373949255,1753161041764,-460.0,0.00016938,2]
[373949257,1753161041774,-460.0,0.00016938,2]
[373949259,1753161041784,-500.0,0.00016943,2]
[373949262,1753161041794,-500.0,0.00016973,2]
[373949263,1753161041803,-1124.31456015,0.00017007,2]
[373949265,1753161041813,-460.0,0.00017105,2]
[373949267,1753161041822,-335.08885248,0.00017105,2]
[373949270,1753161041832,-460.0,0.00017106,2]
[373949271,1753161041841,-460.0,0.00017106,2]
[373949274,1753161041852,-460.0,0.00017106,2]
[373949276,1753161041862,-460.0,0.00017106,2]
[373949277,1753161041877,-895.02,0.00017106,2]
[373949279,1753161041897,-460.0,0.00017106,2]
[373949281,1753161041910,-460.0,0.00017106,2]
[373949283,1753161041920,-864.36,0.00017106,2]
[373949285,1753161041930,-460.0,0.00017106,2]
[373949287,1753161041941,-460.0,0.00017106,2]
[373949289,1753161041950,-460.0,0.00017106,2]
[373949291,1753161041959,-460.0,0.00017106,2]
[373949293,1753161041969,-460.0,0.00017106,2]
[373949295,1753161041978,-474.91,0.00017106,2]
[373949297,1753161041988,-460.0,0.00017106,2]
[373949300,1753161041998,-460.0,0.00017106,2]
[373949301,1753161042007,-460.0,0.00017107,2]
[373949304,1753161042016,-460.0,0.00017107,2]
[373949306,1753161042026,-407.41580795,0.00017107,2]
[373949307,1753161042036,-460.0,0.00017107,2]
[373949309,1753161042046,-460.0,0.00017107,2]
[373949312,1753161042056,-460.0,0.00017107,2]
[373949313,1753161042065,-460.0,0.00017107,2]
[373949316,1753161042075,-460.0,0.00017107,2]
[373949317,1753161042084,-460.0,0.00017107,2]
[373949318,1753161042094,-460.0,0.00017107,2]
[373949319,1753161042103,-460.0,0.00017107,2]
[373949320,1753161042113,-460.0,0.00017107,2]
[373949321,1753161042123,-460.0,0.00017107,2]
[373949322,1753161042133,-191.43522427,0.00017107,2]
[373949323,1753161042143,-460.0,0.00017107,2]
[373949324,1753161042155,-548.85261892,0.00017107,2]
[373949325,1753161042164,-460.0,0.00017107,2]
[373949326,1753161042174,-460.0,0.00017107,2]
[373949327,1753161042184,-460.0,0.00017107,2]
[373949328,1753161042193,-460.0,0.00017107,2]
[373949329,1753161042203,-460.0,0.00017107,2]
[373949330,1753161042212,-460.0,0.00017107,2]
[373949331,1753161042223,-460.0,0.00017107,2]
[373949332,1753161042238,-460.0,0.00017107,2]
[373949333,1753161042248,-460.0,0.00017107,2]
[373949335,1753161042257,-460.0,0.00017107,2]
[373949337,1753161042267,-586.0,0.00017107,2]
[373949339,1753161042276,-460.0,0.00017107,2]
[373949341,1753161042286,-460.0,0.00017107,2]
[373949343,1753161042296,-460.0,0.00017107,2]
[373949345,1753161042306,-460.0,0.00017107,2]
[373949347,1753161042315,-460.0,0.00017107,2]
[373949349,1753161042324,-573.0,0.00017107,2]
[373949351,1753161042334,-460.0,0.00017107,2]
[373949353,1753161042344,-460.0,0.00017107,2]
[373949355,1753161042353,-460.0,0.00017107,2]
[373949357,1753161042362,-460.0,0.00017107,2]
[373949359,1753161042372,-460.0,0.00017107,2]
[373949361,1753161042381,-460.0,0.00017107,2]
[373949363,1753161042390,-183.86152849,0.00017107,2]
[373949405,1753161042700,-5.91847151,0.00017107,2]
[373949406,1753161042711,-352.5228111,0.00017107,2]
[373949407,1753161042720,-460.0,0.00017107,2]
[373949408,1753161042730,-460.0,0.00017107,2]
[373949409,1753161042740,-464.0640637,0.00017108,2]
[373949410,1753161042751,-460.0,0.00017108,2]
[373949411,1753161042761,-59.97750021,0.00017108,2]
[373949412,1753161042773,-400.02249979,0.00017108,2]
[373949413,1753161042782,-464.20384067,0.00017108,2]
[373949414,1753161042792,-460.0,0.00017108,2]
[373949415,1753161042801,-460.0,0.00017108,2]
[373949416,1753161042811,-517.29962209,0.00017108,2]
[373949417,1753161042820,-460.0,0.00017108,2]
[373949418,1753161042830,-460.0,0.00017108,2]
[373949419,1753161042841,-107.71500067,0.00017108,2]
[373949421,1753161042853,-352.28499933,0.00017108,2]
[373949437,1753161043012,-151.80139244,0.00017108,2]
[373949439,1753161043023,-465.0139392,0.00017108,2]
[373949441,1753161043032,-460.0,0.00017108,2]
[373949443,1753161043042,-460.0,0.00017108,2]
[373949445,1753161043051,-460.0,0.00017108,2]
[373949447,1753161043061,-460.0,0.00017108,2]
[373949449,1753161043070,-460.0,0.00017108,2]
[373949451,1753161043079,-387.49966891,0.00017108,2]
[373949453,1753161043091,-72.50033109,0.00017108,2]
[373949455,1753161043100,-460.0,0.00017108,2]
[373949457,1753161043113,-133.62467944,0.00017108,2]
[373949459,1753161043126,-326.37532056,0.00017108,2]
[373949461,1753161043136,-440.06385365,0.00017108,2]
[373949481,1753161043325,-460.0,0.00016833,2]
[373949483,1753161043335,-460.0,0.00016938,2]
[373949485,1753161043345,-460.0,0.00017107,2]
[373949487,1753161043354,-19.93614635,0.00017108,2]
[373949489,1753161043364,-460.0,0.00017108,2]
[373949491,1753161043373,-490.83,0.00017108,2]
[373949493,1753161043383,-704.68,0.00017108,2]
[373949495,1753161043392,-460.0,0.00017109,2]
[373949497,1753161043404,-460.0,0.00017109,2]
[373949499,1753161043414,-460.0,0.00017109,2]
[373949501,1753161043423,-460.0,0.00017109,2]
[373949503,1753161043433,-466.1690313,0.00017207,2]
[373949505,1753161043442,-460.0,0.00017207,2]
[373949507,1753161043452,-462.32749318,0.00017207,2]
[373949509,1753161043461,-500.0,0.00017207,2]
[373949511,1753161043470,-460.0,0.00017207,2]
[373949513,1753161043480,-117.2135934,0.00017207,2]
[373949517,1753161043507,-342.7864066,0.00017207,2]
[373949519,1753161043516,-460.0,0.00017207,2]
[373949521,1753161043526,-460.0,0.00017207,2]
[373949523,1753161043535,-460.0,0.00017207,2]
[373949525,1753161043545,-202.43,0.00017207,2]
[373949526,1753161043554,-460.0,0.00017207,2]
[373949528,1753161043564,-460.0,0.00017207,2]
[373949530,1753161043574,-460.0,0.00017207,2]
[373949532,1753161043583,-460.0,0.00017207,2]
[373949534,1753161043592,-460.0,0.00017207,2]
[373949536,1753161043603,-460.0,0.00017207,2]
[373949538,1753161043613,-460.0,0.00017207,2]
[373949541,1753161043623,-1427.52,0.00017208,2]
[373949542,1753161043632,-460.0,0.00017208,2]
[373949544,1753161043642,-460.0,0.00017208,2]
[373949546,1753161043652,-882.06,0.00017208,2]
[373949548,1753161043666,-182.29,0.00017208,2]
[373949550,1753161043678,-556.4,0.00017208,2]
[373949552,1753161043688,-1311.2,0.00017208,2]
[373949554,1753161043699,-460.0,0.00017208,2]
[373949556,1753161043709,-460.0,0.00017208,2]
[373949558,1753161043718,-460.0,0.00017208,2]
[373949560,1753161043728,-460.0,0.00017208,2]
[373949562,1753161043739,-460.0,0.00017208,2]
[373949564,1753161043748,-460.0,0.00017208,2]
[373949566,1753161043758,-460.0,0.00017208,2]
[373949568,1753161043767,-460.0,0.00017208,2]
[373949570,1753161043777,-460.0,0.00017208,2]
[373949572,1753161043786,-438.57327389,0.00017208,2]
[373949574,1753161043796,-460.0,0.00017208,2]
[373949576,1753161043806,-500.0,0.00017209,2]
[373949578,1753161043816,-500.0,0.00017209,2]
[373949580,1753161043825,-500.0,0.0001721,2]
[373949582,1753161043835,-460.0,0.0001721,2]
[373949584,1753161043844,-460.0,0.0001721,2]
[373949586,1753161043854,-460.0,0.0001721,2]
[373949588,1753161043863,-2082.03,0.0001721,2]
[373949590,1753161043872,-546.51,0.0001721,2]
[373949592,1753161043882,-1130.92,0.0001721,2]
[373949593,1753161043891,-485.21267719,0.0001721,2]
[373949595,1753161043901,-500.0,0.00017211,2]
[373949597,1753161043911,-500.0,0.00017211,2]
[373949599,1753161043920,-231.26232636,0.00017211,2]
[373949601,1753161043929,-460.0,0.00017211,2]
[373949603,1753161043939,-460.0,0.00017211,2]
[373949605,1753161043950,-1285.04,0.00017211,2]
[373949607,1753161043960,-460.0,0.00017211,2]
[373949609,1753161043969,-472.92,0.00017211,2]
[373949611,1753161043979,-1025.15,0.00017211,2]
[373949613,1753161043988,-460.0,0.00017212,2]
[373949615,1753161043998,-460.0,0.00017212,2]
[373949617,1753161044007,-460.0,0.00017212,2]
[373949619,1753161044017,-500.0,0.00017215,2]
[373949621,1753161044027,-286.34611716,0.00017283,2]
[373949623,1753161044037,-4780.16550748,0.00017304,2]
[373949825,1753161046233,-1821.0,0.00017304,2]
[373949828,1753161046245,-2445.07506702,0.00017304,2]
[373949830,1753161046255,-460.0,0.00017379,2]
[373949831,1753161046264,-460.0,0.0001738,2]
[373949834,1753161046273,-895.02,0.0001738,2]
[373949836,1753161046282,-460.0,0.0001738,2]
[373949838,1753161046292,-460.0,0.0001738,2]
[373949840,1753161046302,-864.36,0.0001738,2]
[373949842,1753161046312,-460.0,0.0001738,2]
[373949844,1753161046322,-460.0,0.0001738,2]
[373949846,1753161046333,-466.28,0.0001738,2]
[373949848,1753161046342,-460.0,0.0001738,2]
[373949851,1753161046352,-460.0,0.0001738,2]
[373949853,1753161046361,-474.91,0.0001738,2]
[373949855,1753161046370,-460.0,0.0001738,2]
[373949857,1753161046380,-460.0,0.0001738,2]
[373949859,1753161046390,-460.0,0.00017381,2]
[373949861,1753161046399,-460.0,0.00017381,2]
[373949863,1753161046410,-253.91,0.00017381,2]
[373949865,1753161046419,-460.0,0.00017381,2]
[373949867,1753161046428,-460.0,0.00017381,2]
[373949869,1753161046438,-460.0,0.00017381,2]
[373949871,1753161046447,-460.0,0.00017381,2]
[373949873,1753161046459,-460.0,0.00017381,2]
[373949875,1753161046468,-460.0,0.00017381,2]
[373949877,1753161046478,-460.0,0.00017381,2]
[373949879,1753161046489,-460.0,0.00017381,2]
[373949881,1753161046498,-460.0,0.00017381,2]
[373949883,1753161046508,-460.0,0.00017381,2]
[373949885,1753161046518,-460.0,0.00017381,2]
[373949887,1753161046527,-267.0868317,0.00017381,2]
[373949889,1753161046536,-460.0,0.00017381,2]
[373949891,1753161046546,-460.0,0.00017381,2]
[373949893,1753161046555,-460.0,0.00017381,2]
[373949895,1753161046564,-460.0,0.00017382,2]
[373949897,1753161046574,-460.0,0.00017382,2]
[373949899,1753161046584,-460.0,0.00017382,2]
[373949901,1753161046593,-460.0,0.00017382,2]
[373949903,1753161046602,-460.0,0.00017382,2]
[373949905,1753161046611,-460.0,0.00017382,2]
[373949907,1753161046621,-460.0,0.00017382,2]
[373949909,1753161046630,-460.0,0.00017382,2]
[373949911,1753161046639,-460.0,0.00017382,2]
[373949913,1753161046649,-197.35879225,0.00017382,2]
[373949915,1753161046660,-460.0,0.00017382,2]
[373949918,1753161046674,-572.63,0.00017382,2]
[373949920,1753161046683,-460.0,0.00017382,2]
[373949922,1753161046692,-490.83,0.00017382,2]
[373949924,1753161046702,-704.68,0.00017382,2]
[373949926,1753161046713,-460.0,0.00017383,2]
[373949928,1753161046722,-462.73118339,0.00017383,2]
[373949930,1753161046731,-460.0,0.00017383,2]
[373949932,1753161046743,-3183.35256133,0.00017391,2]
[373949934,1753161046752,-500.0,0.00017421,2]
[373949936,1753161046762,-460.0,0.00017481,2]
[373949938,1753161046771,-500.0,0.00017481,2]
[373949940,1753161046780,-460.0,0.00017481,2]
[373949942,1753161046790,-460.0,0.00017481,2]
[373949944,1753161046799,-460.0,0.00017481,2]
[373949946,1753161046808,-460.0,0.00017481,2]
[373949948,1753161046818,-460.0,0.00017481,2]
[373949950,1753161046827,-460.0,0.00017481,2]
[373949952,1753161046838,-1427.52,0.00017482,2]
[373949954,1753161046847,-204.65519776,0.00017482,2]
[373949956,1753161046856,-460.0,0.00017482,2]
[373949958,1753161046865,-882.06,0.00017482,2]
[373949960,1753161046874,-1311.2,0.00017482,2]
[373949962,1753161046883,-460.0,0.00017482,2]
[373949964,1753161046892,-460.0,0.00017482,2]
[373949966,1753161046901,-281.22,0.00017482,2]
[373949968,1753161046911,-460.0,0.00017482,2]
[373949970,1753161046921,-460.0,0.00017482,2]
[373949972,1753161046930,-460.0,0.00017482,2]
[373949974,1753161046940,-460.0,0.00017482,2]
[373949976,1753161046949,-470.42,0.00017482,2]
[373949978,1753161046959,-631.76576473,0.00017483,2]
[373949980,1753161046969,-2082.03,0.00017484,2]
[373949982,1753161046978,-546.51,0.00017484,2]
[373949984,1753161046988,-1130.92,0.00017484,2]
[373949986,1753161046997,-462.90058989,0.00017485,2]
[373949988,1753161047007,-460.0,0.00017485,2]
[373949990,1753161047016,-472.92,0.00017485,2]
[373949992,1753161047026,-1025.15,0.00017485,2]
[373949994,1753161047035,-460.0,0.00017486,2]
[373949996,1753161047044,-419.46,0.00017486,2]
[373949998,1753161047055,-278.02060332,0.00017521,2]
[373950000,1753161047065,-485.21267719,0.00017521,2]
[373950002,1753161047075,-530.33041334,0.00017654,2]
[373950004,1753161047085,-895.02,0.00017654,2]
[373950006,1753161047095,-460.0,0.00017654,2]
[373950008,1753161047104,-214.36,0.00017654,2]
[373950010,1753161047114,-864.36,0.00017654,2]
[373950013,1753161047124,-464.46,0.00017654,2]
[373950014,1753161047133,-460.0,0.00017654,2]
[373950017,1753161047143,-199.8,0.00017654,2]
[373950019,1753161047152,-460.0,0.00017654,2]
[373950021,1753161047162,-474.91,0.00017654,2]
[373950023,1753161047172,-602.35998662,0.00017654,2]
[373950025,1753161047182,-460.0,0.00017654,2]
[373950027,1753161047191,-579.43765627,0.00017655,2]
[373950029,1753161047201,-460.0,0.00017655,2]
[373950031,1753161047210,-154.88,0.00017655,2]
[373950033,1753161047219,-460.0,0.00017655,2]
[373950034,1753161047229,-460.0,0.00017655,2]
[373950036,1753161047238,-460.0,0.00017655,2]
[373950038,1753161047247,-460.0,0.00017655,2]
[373950040,1753161047256,-460.0,0.00017655,2]
[373950043,1753161047266,-460.0,0.00017655,2]
[373950045,1753161047276,-234.15,0.00017655,2]
[373950046,1753161047285,-247.11110446,0.00017655,2]
[373950049,1753161047294,-460.0,0.00017655,2]
[373950051,1753161047304,-460.0,0.00017655,2]
[373950056,1753161047341,-460.0,0.00017656,2]
[373950058,1753161047351,-460.0,0.00017656,2]
[373950059,1753161047360,-460.0,0.00017656,2]
[373950062,1753161047371,-460.0,0.00017656,2]
[373950063,1753161047381,-571.02,0.00017656,2]
[373950065,1753161047390,-606.01,0.00017656,2]
[373950068,1753161047402,-460.0,0.00017656,2]
[373950070,1753161047412,-460.0,0.00017656,2]
[373950072,1753161047421,-490.83,0.00017656,2]
[373950074,1753161047431,-704.68,0.00017656,2]
[373950075,1753161047440,-460.0,0.00017657,2]
[373950077,1753161047450,-460.0,0.00017755,2]
[373950079,1753161047459,-460.0,0.00017755,2]
[373950080,1753161047468,-202.56,0.00017755,2]
[373950081,1753161047477,-460.0,0.00017755,2]
[373950082,1753161047486,-460.0,0.00017755,2]
[373950083,1753161047495,-460.0,0.00017755,2]
[373950084,1753161047504,-460.0,0.00017755,2]
[373950085,1753161047513,-1427.52,0.00017756,2]
[373950086,1753161047522,-460.0,0.00017756,2]
[373950087,1753161047531,-882.06,0.00017756,2]
[373950089,1753161047540,-1311.2,0.00017756,2]
[373950091,1753161047549,-460.0,0.00017756,2]
[373950093,1753161047558,-460.0,0.00017756,2]
[373950095,1753161047567,-460.0,0.00017756,2]
[373950097,1753161047576,-460.0,0.00017756,2]
[373950099,1753161047585,-460.0,0.00017756,2]
[373950101,1753161047595,-2082.03,0.00017758,2]
[373950103,1753161047605,-1130.92,0.00017758,2]
[373950105,1753161047614,-472.92,0.00017759,2]
[373950107,1753161047623,-1025.15,0.00017759,2]
[373950109,1753161047633,-460.0,0.0001776,2]
[373950111,1753161047642,-500.0,0.00017815,2]
[373950113,1753161047651,-485.21267719,0.00017831,2]
[373950115,1753161047661,-895.02,0.00017928,2]
[373950117,1753161047673,-460.0,0.00017928,2]
[373950119,1753161047682,-864.36,0.00017928,2]
[373950121,1753161047691,-460.0,0.00017928,2]
[373950123,1753161047701,-460.0,0.00017928,2]
[373950125,1753161047711,-474.91,0.00017928,2]
[373950127,1753161047721,-460.0,0.00017928,2]
[373950129,1753161047730,-460.0,0.00017929,2]
[373950131,1753161047740,-255.94817163,0.00017929,2]
[373950133,1753161047750,-460.0,0.00017929,2]
[373950136,1753161047760,-460.0,0.00017929,2]
[373950138,1753161047769,-460.0,0.00017929,2]
[373950140,1753161047779,-460.0,0.00017929,2]
[373950142,1753161047788,-445.04,0.00017929,2]
[373950144,1753161047798,-453.31,0.00017929,2]
[373950146,1753161047808,-460.0,0.0001793,2]
[373950148,1753161047818,-460.0,0.0001793,2]
[373950150,1753161047827,-220.0,0.0001793,2]
[373950152,1753161047836,-460.0,0.0001793,2]
[373950154,1753161047846,-460.0,0.0001793,2]
[373950156,1753161047855,-460.0,0.0001793,2]
[373950158,1753161047864,-490.83,0.0001793,2]
[373950160,1753161047874,-704.68,0.0001793,2]
[373950162,1753161047883,-460.0,0.00017931,2]
[373950164,1753161047892,-460.0,0.00018029,2]
[373950166,1753161047902,-460.0,0.00018029,2]
[373950168,1753161047912,-363.75,0.00018029,2]
[373950170,1753161047921,-1427.52,0.0001803,2]
[373950172,1753161047930,-577.57,0.0001803,2]
[373950174,1753161047939,-882.06,0.0001803,2]
[373950176,1753161047948,-1311.2,0.0001803,2]
[373950178,1753161047957,-460.0,0.0001803,2]
[373950180,1753161047966,-460.0,0.0001803,2]
[373950182,1753161047975,-460.0,0.0001803,2]
[373950184,1753161047984,-2082.03,0.00018032,2]
[373950186,1753161047993,-1130.92,0.00018032,2]
[373950188,1753161048002,-472.92,0.00018033,2]
[373950190,1753161048011,-1025.15,0.00018033,2]
[373950192,1753161048020,-460.0,0.00018034,2]
[373950194,1753161048030,-485.21267719,0.00018141,2]
[373950196,1753161048039,-435.92215935,0.00018187,2]
[373950198,1753161048049,-895.02,0.00018202,2]
[373950200,1753161048058,-460.0,0.00018202,2]
[373950202,1753161048067,-864.36,0.00018202,2]
[373950204,1753161048076,-460.0,0.00018202,2]
[373950206,1753161048086,-460.0,0.00018202,2]
[373950208,1753161048096,-474.91,0.00018202,2]
[373950210,1753161048105,-460.0,0.00018202,2]
[373950212,1753161048115,-460.0,0.00018203,2]
[373950214,1753161048125,-460.0,0.00018203,2]
[373950216,1753161048134,-460.0,0.00018203,2]
[373950218,1753161048143,-460.0,0.00018203,2]